[Event "December 19 Early 2023"]
[Site "https://www.chess.com"]
[Date "2023.12.19"]
[Round "2"]
[White "Kozak, Antoni"]
[Black "Goltseva, Ekaterina"]
[Result "1-0"]
[Board "78"]
[TimeControl "180+1"]
[WhiteFideId "21832030"]
[BlackFideId "24173770"]
[WhiteElo "2470"]
[BlackElo "2139"]
[WhiteTeam "POL"]
[BlackTeam "RUS"]
[WhiteClock "0:00:25"]
[BlackClock "0:00:07"]

1. d4 {[%clk 0:03:00]}  e6 {[%clk 0:02:58]} 2. Nf3 {[%clk 0:03:01]}  Nf6 {[%clk 0:02:58]} 3. Bg5 {[%clk 0:03:01]}  h6 {[%clk 0:02:55]} 4. Bh4 {[%clk 0:03:00]}  c5 {[%clk 0:02:55]} 5. e3 {[%clk 0:02:58]}  Nc6 {[%clk 0:02:54]} 6. c3 {[%clk 0:02:57]}  d5 {[%clk 0:02:55]} 7. Nbd2 {[%clk 0:02:57]}  Be7 {[%clk 0:02:49]} 8. Bd3 {[%clk 0:02:55]}  O-O {[%clk 0:02:48]} 9. Qe2 {[%clk 0:02:50]}  b6 {[%clk 0:02:44]} 10. O-O {[%clk 0:02:47]}  Bb7 {[%clk 0:02:42]} 11. Rad1 {[%clk 0:02:36]}  Qc7 {[%clk 0:02:35]} 12. Bg3 {[%clk 0:02:21]}  Bd6 {[%clk 0:02:24]} 13. Bxd6 {[%clk 0:02:21]}  Qxd6 {[%clk 0:02:25]} 14. e4 {[%clk 0:02:21]}  dxe4 {[%clk 0:02:15]} 15. Nxe4 {[%clk 0:02:21]}  Nxe4 {[%clk 0:02:10]} 16. Bxe4 {[%clk 0:02:19]}  Rad8 {[%clk 0:02:05]} 17. Rd2 {[%clk 0:02:01]}  cxd4 {[%clk 0:01:48]} 18. Nxd4 {[%clk 0:02:00]}  Nxd4 {[%clk 0:01:44]} 19. Rxd4 {[%clk 0:02:00]}  Qc7 {[%clk 0:01:43]} 20. Rfd1 {[%clk 0:01:57]}  Rxd4 {[%clk 0:01:35]} 21. Rxd4 {[%clk 0:01:57]}  Bxe4 {[%clk 0:01:30]} 22. Qxe4 {[%clk 0:01:56]}  Rd8 {[%clk 0:01:30]} 23. g3 {[%clk 0:01:48]}  Rxd4 {[%clk 0:01:10]} 24. Qxd4 {[%clk 0:01:49]}  e5 {[%clk 0:01:10]} 25. Qd5 {[%clk 0:01:48]}  Qe7 {[%clk 0:01:06]} 26. b4 {[%clk 0:01:44]}  e4 {[%clk 0:01:06]} 27. Qd4 {[%clk 0:01:38]}  Qe6 {[%clk 0:01:01]} 28. a4 {[%clk 0:01:34]}  Qa2 {[%clk 0:00:53]} 29. b5 {[%clk 0:01:22]}  Qc2 {[%clk 0:00:43]} 30. h4 {[%clk 0:01:19]}  h5 {[%clk 0:00:41]} 31. Kg2 {[%clk 0:01:08]}  g6 {[%clk 0:00:33]} 32. Qd8+ {[%clk 0:01:06]}  Kg7 {[%clk 0:00:33]} 33. Qd4+ {[%clk 0:01:07]}  Kg8 {[%clk 0:00:32]} 34. Kf1 {[%clk 0:01:06]}  Qc1+ {[%clk 0:00:29]} 35. Ke2 {[%clk 0:01:05]}  f5 {[%clk 0:00:19]} 36. Qd5+ {[%clk 0:00:50]}  Kg7 {[%clk 0:00:18]} 37. Qe5+ {[%clk 0:00:49]}  Kf7 {[%clk 0:00:17]} 38. Qc7+ {[%clk 0:00:49]}  Kf6 {[%clk 0:00:16]} 39. Qd8+ {[%clk 0:00:48]}  Kf7 {[%clk 0:00:16]} 40. Qd7+ {[%clk 0:00:48]}  Kf6 {[%clk 0:00:16]} 41. Qd6+ {[%clk 0:00:49]}  Kf7 {[%clk 0:00:16]} 42. Qc7+ {[%clk 0:00:36]}  Kg8 {[%clk 0:00:16]} 43. Qb8+ {[%clk 0:00:35]}  Kg7 {[%clk 0:00:12]} 44. Qxa7+ {[%clk 0:00:35]}  Kh6 {[%clk 0:00:13]} 45. Qxb6 {[%clk 0:00:36]}  Qc2+ {[%clk 0:00:09]} 46. Kf1 {[%clk 0:00:35]}  Qd1+ {[%clk 0:00:09]} 47. Kg2 {[%clk 0:00:35]}  Qf3+ {[%clk 0:00:09]} 48. Kg1 {[%clk 0:00:34]}  f4 {[%clk 0:00:09]} 49. Qd4 {[%clk 0:00:26]}  e3 {[%clk 0:00:07]} 50. Qh8# {[%clk 0:00:25]} 1-0

[Event "December 19 Early 2023"]
[Site "https://www.chess.com"]
[Date "2023.12.19"]
[Round "2"]
[White "Asish Panda"]
[Black "Martinez Ramirez, Lennis"]
[Result "1-0"]
[Board "80"]
[TimeControl "180+1"]
[WhiteFideId "45012458"]
[BlackFideId "3509079"]
[WhiteElo "1767"]
[BlackElo "2405"]
[WhiteTeam "IND"]
[BlackTeam "CUB"]
[WhiteClock "0:00:49"]
[BlackClock "0:00:00"]

1. e4 {[%clk 0:03:00]}  d6 {[%clk 0:02:58]} 2. g3 {[%clk 0:03:00]}  c5 {[%clk 0:02:56]} 3. Bg2 {[%clk 0:03:00]}  Nc6 {[%clk 0:02:57]} 4. Ne2 {[%clk 0:03:00]}  g6 {[%clk 0:02:57]} 5. O-O {[%clk 0:03:00]}  Bg7 {[%clk 0:02:58]} 6. c3 {[%clk 0:03:00]}  e5 {[%clk 0:02:52]} 7. Na3 {[%clk 0:02:56]}  Nge7 {[%clk 0:02:37]} 8. Nc2 {[%clk 0:02:48]}  d5 {[%clk 0:02:34]} 9. exd5 {[%clk 0:02:44]}  Nxd5 {[%clk 0:02:34]} 10. d4 {[%clk 0:02:44]}  cxd4 {[%clk 0:02:28]} 11. cxd4 {[%clk 0:02:43]}  Bg4 {[%clk 0:02:20]} 12. dxe5 {[%clk 0:02:30]}  Nde7 {[%clk 0:02:12]} 13. f3 {[%clk 0:02:24]}  Bf5 {[%clk 0:01:55]} 14. f4 {[%clk 0:02:13]}  Qxd1 {[%clk 0:01:53]} 15. Rxd1 {[%clk 0:02:11]}  Bxc2 {[%clk 0:01:54]} 16. Re1 {[%clk 0:02:10]}  O-O-O {[%clk 0:01:50]} 17. Be3 {[%clk 0:02:10]}  Nf5 {[%clk 0:01:49]} 18. Bf2 {[%clk 0:02:08]}  Kb8 {[%clk 0:01:35]} 19. Rac1 {[%clk 0:02:05]}  Bd3 {[%clk 0:01:12]} 20. Nc3 {[%clk 0:02:00]}  Nfd4 {[%clk 0:01:06]} 21. Rcd1 {[%clk 0:01:50]}  Ba6 {[%clk 0:01:02]} 22. Kh1 {[%clk 0:01:32]}  h5 {[%clk 0:00:57]} 23. Ne4 {[%clk 0:01:30]}  Bc4 {[%clk 0:00:25]} 24. Nd6 {[%clk 0:01:25]}  Rxd6 {[%clk 0:00:19]} 25. exd6 {[%clk 0:01:25]}  Bxa2 {[%clk 0:00:18]} 26. Re4 {[%clk 0:01:15]}  Nf5 {[%clk 0:00:10]} 27. d7 {[%clk 0:01:06]}  Be6 {[%clk 0:00:07]} 28. Rxe6 {[%clk 0:01:00]}  fxe6 {[%clk 0:00:06]} 29. Bxc6 {[%clk 0:01:01]}  Kc7 {[%clk 0:00:03]} 30. Ba4 {[%clk 0:00:56]}  Bxb2 {[%clk 0:00:03]} 31. Bxa7 {[%clk 0:00:51]}  b6 {[%clk 0:00:02]} 32. Bxb6+ {[%clk 0:00:50]}  Kxb6 {[%clk 0:00:02]} 33. d8=Q+ {[%clk 0:00:50]}  Rxd8 {[%clk 0:00:02]} 34. Rxd8 {[%clk 0:00:50]}  Bd4 {[%clk 0:00:00]} 35. Bc2 {[%clk 0:00:49]} 1-0

[Event "December 19 Early 2023"]
[Site "https://www.chess.com"]
[Date "2023.12.19"]
[Round "2"]
[White "Schmakel, Sam"]
[Black "Sanchez Alvares, Kelvin Antonio"]
[Result "1-0"]
[Board "81"]
[TimeControl "180+1"]
[WhiteFideId "2039311"]
[BlackFideId "3906680"]
[WhiteElo "2356"]
[BlackElo "2217"]
[WhiteTeam "USA"]
[BlackTeam "VEN"]
[WhiteClock "0:00:50"]
[BlackClock "0:00:00"]

1. d4 {[%clk 0:03:00]}  d5 {[%clk 0:02:59]} 2. c4 {[%clk 0:03:00]}  c6 {[%clk 0:02:58]} 3. Nf3 {[%clk 0:03:00]}  Nf6 {[%clk 0:02:58]} 4. g3 {[%clk 0:02:57]}  Bf5 {[%clk 0:02:55]} 5. Bg2 {[%clk 0:02:57]}  e6 {[%clk 0:02:55]} 6. O-O {[%clk 0:02:47]}  Nbd7 {[%clk 0:02:55]} 7. Nc3 {[%clk 0:02:43]}  h6 {[%clk 0:02:51]} 8. Ne5 {[%clk 0:02:28]}  Bd6 {[%clk 0:02:37]} 9. Bf4 {[%clk 0:02:22]}  g5 {[%clk 0:02:12]} 10. Nxc6 {[%clk 0:02:04]}  Qc7 {[%clk 0:01:58]} 11. Nb5 {[%clk 0:02:04]}  Qxc6 {[%clk 0:01:50]} 12. Bxd6 {[%clk 0:02:04]}  a6 {[%clk 0:01:36]} 13. Nc7+ {[%clk 0:01:58]}  Kd8 {[%clk 0:01:36]} 14. Nxa8 {[%clk 0:01:49]}  Qxd6 {[%clk 0:01:35]} 15. c5 {[%clk 0:01:30]}  Qc6 {[%clk 0:01:25]} 16. Qb3 {[%clk 0:01:26]}  Ke7 {[%clk 0:01:12]} 17. Nb6 {[%clk 0:01:24]}  Nxb6 {[%clk 0:01:10]} 18. Qxb6 {[%clk 0:01:21]}  Rb8 {[%clk 0:00:58]} 19. b4 {[%clk 0:01:07]}  Nd7 {[%clk 0:00:54]} 20. Qxc6 {[%clk 0:01:06]}  bxc6 {[%clk 0:00:54]} 21. a3 {[%clk 0:01:06]}  f6 {[%clk 0:00:45]} 22. f3 {[%clk 0:01:03]}  e5 {[%clk 0:00:45]} 23. e4 {[%clk 0:01:03]}  Be6 {[%clk 0:00:31]} 24. dxe5 {[%clk 0:01:03]}  Nxe5 {[%clk 0:00:27]} 25. f4 {[%clk 0:01:03]}  Nc4 {[%clk 0:00:25]} 26. exd5 {[%clk 0:01:02]}  Bxd5 {[%clk 0:00:17]} 27. Bxd5 {[%clk 0:00:57]}  cxd5 {[%clk 0:00:18]} 28. Rae1+ {[%clk 0:00:57]}  Kd7 {[%clk 0:00:17]} 29. fxg5 {[%clk 0:00:57]}  fxg5 {[%clk 0:00:16]} 30. Rf6 {[%clk 0:00:53]}  a5 {[%clk 0:00:09]} 31. c6+ {[%clk 0:00:49]}  Kc7 {[%clk 0:00:07]} 32. Re7+ {[%clk 0:00:49]}  Kd8 {[%clk 0:00:03]} 33. c7+ {[%clk 0:00:49]}  Kxe7 {[%clk 0:00:03]} 34. cxb8=Q {[%clk 0:00:50]}  Kxf6 {[%clk 0:00:03]} 35. bxa5 {[%clk 0:00:50]}  Nxa5 {[%clk 0:00:00]} 36. Qb6+ {[%clk 0:00:50]} 1-0

[Event "December 19 Early 2023"]
[Site "https://www.chess.com"]
[Date "2023.12.19"]
[Round "2"]
[White "Cattaneo, Marco"]
[Black "Halkias, Stelios"]
[Result "1-0"]
[Board "82"]
[TimeControl "180+1"]
[WhiteFideId "878332"]
[BlackFideId "4201809"]
[WhiteElo "2186"]
[BlackElo "2462"]
[WhiteTeam "ITA"]
[BlackTeam "GRE"]
[WhiteClock "0:00:13"]
[BlackClock "0:00:19"]

1. e4 {[%clk 0:03:00]}  e5 {[%clk 0:02:59]} 2. Nc3 {[%clk 0:03:00]}  Nf6 {[%clk 0:02:58]} 3. g3 {[%clk 0:03:01]}  Nc6 {[%clk 0:02:54]} 4. Bg2 {[%clk 0:03:01]}  Bc5 {[%clk 0:02:54]} 5. Nge2 {[%clk 0:02:59]}  d6 {[%clk 0:02:54]} 6. d3 {[%clk 0:02:59]}  h6 {[%clk 0:02:51]} 7. h3 {[%clk 0:02:59]}  Be6 {[%clk 0:02:49]} 8. Nd5 {[%clk 0:02:58]}  a6 {[%clk 0:02:49]} 9. c3 {[%clk 0:02:57]}  Ba7 {[%clk 0:02:48]} 10. b4 {[%clk 0:02:56]}  O-O {[%clk 0:02:46]} 11. a4 {[%clk 0:02:53]}  Bxd5 {[%clk 0:02:45]} 12. exd5 {[%clk 0:02:53]}  Ne7 {[%clk 0:02:46]} 13. c4 {[%clk 0:02:50]}  a5 {[%clk 0:02:46]} 14. b5 {[%clk 0:02:49]}  Bc5 {[%clk 0:02:47]} 15. O-O {[%clk 0:02:47]}  Ng6 {[%clk 0:02:46]} 16. Kh2 {[%clk 0:02:45]}  Re8 {[%clk 0:02:46]} 17. Be3 {[%clk 0:02:30]}  Qd7 {[%clk 0:02:39]} 18. Bxc5 {[%clk 0:02:00]}  dxc5 {[%clk 0:02:39]} 19. Nc3 {[%clk 0:02:01]}  Re7 {[%clk 0:02:33]} 20. b6 {[%clk 0:01:51]}  Ne8 {[%clk 0:02:09]} 21. bxc7 {[%clk 0:01:50]}  Qxc7 {[%clk 0:02:09]} 22. Rb1 {[%clk 0:01:31]}  Nd6 {[%clk 0:02:08]} 23. Nb5 {[%clk 0:01:30]}  Nxb5 {[%clk 0:01:55]} 24. Rxb5 {[%clk 0:01:29]}  Nf8 {[%clk 0:01:38]} 25. Qd2 {[%clk 0:01:20]}  Ra6 {[%clk 0:01:20]} 26. Rfb1 {[%clk 0:01:14]}  b6 {[%clk 0:01:20]} 27. R5b2 {[%clk 0:01:10]}  Nd7 {[%clk 0:01:20]} 28. Qc3 {[%clk 0:01:07]}  Qd6 {[%clk 0:01:19]} 29. h4 {[%clk 0:01:06]}  Nf6 {[%clk 0:01:14]} 30. Qb3 {[%clk 0:01:05]}  h5 {[%clk 0:01:11]} 31. Qb5 {[%clk 0:01:05]}  Rea7 {[%clk 0:01:11]} 32. Qc6 {[%clk 0:01:04]}  Ng4+ {[%clk 0:01:09]} 33. Kg1 {[%clk 0:01:03]}  Qd8 {[%clk 0:00:49]} 34. Rxb6 {[%clk 0:00:56]}  Rxb6 {[%clk 0:00:49]} 35. Qxb6 {[%clk 0:00:55]}  Rc7 {[%clk 0:00:35]} 36. d6 {[%clk 0:00:37]}  Rd7 {[%clk 0:00:34]} 37. Qxd8+ {[%clk 0:00:37]}  Rxd8 {[%clk 0:00:35]} 38. Rb6 {[%clk 0:00:37]}  Nf6 {[%clk 0:00:35]} 39. Be4 {[%clk 0:00:31]}  g6 {[%clk 0:00:35]} 40. Rc6 {[%clk 0:00:31]}  Kg7 {[%clk 0:00:35]} 41. Rxc5 {[%clk 0:00:30]}  Rxd6 {[%clk 0:00:35]} 42. Rxa5 {[%clk 0:00:29]}  Nxe4 {[%clk 0:00:33]} 43. dxe4 {[%clk 0:00:30]}  Kf6 {[%clk 0:00:34]} 44. Rd5 {[%clk 0:00:28]}  Rb6 {[%clk 0:00:32]} 45. Rb5 {[%clk 0:00:25]}  Rd6 {[%clk 0:00:31]} 46. a5 {[%clk 0:00:20]}  Rd1+ {[%clk 0:00:31]} 47. Kg2 {[%clk 0:00:20]}  Ra1 {[%clk 0:00:23]} 48. Rb6+ {[%clk 0:00:20]}  Ke7 {[%clk 0:00:23]} 49. a6 {[%clk 0:00:20]}  Ra2 {[%clk 0:00:22]} 50. Rb7+ {[%clk 0:00:19]}  Kd6 {[%clk 0:00:22]} 51. a7 {[%clk 0:00:20]}  f5 {[%clk 0:00:21]} 52. exf5 {[%clk 0:00:19]}  gxf5 {[%clk 0:00:22]} 53. Kf1 {[%clk 0:00:19]}  e4 {[%clk 0:00:21]} 54. Rh7 {[%clk 0:00:18]}  Ke5 {[%clk 0:00:20]} 55. c5 {[%clk 0:00:16]}  Kd5 {[%clk 0:00:20]} 56. Rxh5 {[%clk 0:00:16]}  Rxa7 {[%clk 0:00:20]} 57. Rxf5+ {[%clk 0:00:16]}  Kd4 {[%clk 0:00:20]} 58. Kg2 {[%clk 0:00:14]}  Ra2 {[%clk 0:00:18]} 59. Kf1 {[%clk 0:00:14]}  Ra1+ {[%clk 0:00:18]} 60. Kg2 {[%clk 0:00:14]}  Ra2 {[%clk 0:00:19]} 61. Kh3 {[%clk 0:00:14]}  Rc2 {[%clk 0:00:19]} 62. h5 {[%clk 0:00:14]}  e3 {[%clk 0:00:17]} 63. fxe3+ {[%clk 0:00:14]}  Ke4 {[%clk 0:00:18]} 64. Rf4+ {[%clk 0:00:13]}  Kxe3 {[%clk 0:00:18]} 65. h6 {[%clk 0:00:13]}  Rxc5 {[%clk 0:00:19]} 66. h7 {[%clk 0:00:14]}  Rc8 {[%clk 0:00:19]} 67. Rh4 {[%clk 0:00:12]}  Rh8 {[%clk 0:00:19]} 68. Kg2 {[%clk 0:00:13]}  Kd3 {[%clk 0:00:18]} 69. Kf3 {[%clk 0:00:13]}  Kc3 {[%clk 0:00:19]} 70. Ke4 {[%clk 0:00:13]}  Kd2 {[%clk 0:00:19]} 71. Kf5 {[%clk 0:00:13]}  Ke2 {[%clk 0:00:20]} 72. Kg6 {[%clk 0:00:14]}  Kf3 {[%clk 0:00:21]} 73. Kg7 {[%clk 0:00:12]}  Rb8 {[%clk 0:00:21]} 74. h8=Q {[%clk 0:00:12]}  Rxh8 {[%clk 0:00:21]} 75. Rxh8 {[%clk 0:00:13]}  Kxg3 {[%clk 0:00:19]} 76. Kf6 {[%clk 0:00:13]} 1-0

[Event "December 19 Early 2023"]
[Site "https://www.chess.com"]
[Date "2023.12.19"]
[Round "2"]
[White "Srihari L R"]
[Black "Baziuk, Vladyslav"]
[Result "1-0"]
[Board "86"]
[TimeControl "180+1"]
[WhiteFideId "46617116"]
[BlackFideId "34107940"]
[WhiteElo "2338"]
[BlackElo "2019"]
[WhiteTeam "IND"]
[BlackTeam "UKR"]
[WhiteClock "0:00:08"]
[BlackClock "0:00:10"]

1. Nf3 {[%clk 0:03:00]}  c5 {[%clk 0:03:00]} 2. c4 {[%clk 0:02:59]}  Nc6 {[%clk 0:02:59]} 3. Nc3 {[%clk 0:03:00]}  g6 {[%clk 0:02:58]} 4. e3 {[%clk 0:02:57]}  Nf6 {[%clk 0:02:57]} 5. d4 {[%clk 0:02:57]}  cxd4 {[%clk 0:02:57]} 6. exd4 {[%clk 0:02:58]}  d5 {[%clk 0:02:58]} 7. cxd5 {[%clk 0:02:58]}  Nxd5 {[%clk 0:02:59]} 8. Qb3 {[%clk 0:02:59]}  Nxc3 {[%clk 0:02:58]} 9. Bc4 {[%clk 0:02:59]}  Nd5 {[%clk 0:02:59]} 10. Bxd5 {[%clk 0:02:59]}  e6 {[%clk 0:02:59]} 11. Bxc6+ {[%clk 0:02:59]}  bxc6 {[%clk 0:03:00]} 12. O-O {[%clk 0:02:59]}  Qd5 {[%clk 0:03:01]} 13. Qe3 {[%clk 0:02:54]}  f6 {[%clk 0:02:50]} 14. Nd2 {[%clk 0:02:51]}  Be7 {[%clk 0:02:41]} 15. Ne4 {[%clk 0:02:49]}  O-O {[%clk 0:02:33]} 16. Bd2 {[%clk 0:02:45]}  Rb8 {[%clk 0:02:32]} 17. b3 {[%clk 0:02:33]}  Bb7 {[%clk 0:02:16]} 18. Rfe1 {[%clk 0:02:28]}  Rfd8 {[%clk 0:02:06]} 19. Bb4 {[%clk 0:02:25]}  Kf7 {[%clk 0:01:54]} 20. Bxe7 {[%clk 0:02:09]}  Kxe7 {[%clk 0:01:55]} 21. Qh6 {[%clk 0:02:04]}  Rf8 {[%clk 0:01:49]} 22. Qxh7+ {[%clk 0:01:44]}  Rf7 {[%clk 0:01:49]} 23. Qxg6 {[%clk 0:01:41]}  Rh8 {[%clk 0:01:38]} 24. Nc5 {[%clk 0:01:12]}  Bc8 {[%clk 0:01:35]} 25. Qg3 {[%clk 0:01:03]}  Kf8 {[%clk 0:01:18]} 26. Qe3 {[%clk 0:00:53]}  Rg7 {[%clk 0:01:13]} 27. f3 {[%clk 0:00:51]}  Qh5 {[%clk 0:01:07]} 28. Qf4 {[%clk 0:00:46]}  Qg6 {[%clk 0:00:59]} 29. Re2 {[%clk 0:00:36]}  Kg8 {[%clk 0:00:39]} 30. Rae1 {[%clk 0:00:27]}  Rh5 {[%clk 0:00:29]} 31. Rd2 {[%clk 0:00:23]}  Rg5 {[%clk 0:00:28]} 32. g3 {[%clk 0:00:19]}  Rf5 {[%clk 0:00:23]} 33. Qb8 {[%clk 0:00:17]}  Rxf3 {[%clk 0:00:21]} 34. Qxc8+ {[%clk 0:00:17]}  Kh7 {[%clk 0:00:21]} 35. Rg2 {[%clk 0:00:09]}  e5 {[%clk 0:00:17]} 36. Ne6 {[%clk 0:00:08]}  Re7 {[%clk 0:00:10]} 37. Nf8+ {[%clk 0:00:08]} 1-0

[Event "December 19 Early 2023"]
[Site "https://www.chess.com"]
[Date "2023.12.19"]
[Round "2"]
[White "Zimmermann, Ulrich"]
[Black "Maurizzi, Marc`Andria"]
[Result "1/2-1/2"]
[Board "87"]
[TimeControl "180+1"]
[WhiteFideId "24654523"]
[BlackFideId "36083534"]
[WhiteElo "2223"]
[BlackElo "2417"]
[WhiteTeam "GER"]
[BlackTeam "FRA"]
[WhiteClock "0:00:16"]
[BlackClock "0:00:08"]

1. Nf3 {[%clk 0:03:00]}  Nf6 {[%clk 0:02:57]} 2. g3 {[%clk 0:03:01]}  g6 {[%clk 0:02:56]} 3. Bg2 {[%clk 0:03:02]}  Bg7 {[%clk 0:02:56]} 4. O-O {[%clk 0:03:02]}  O-O {[%clk 0:02:57]} 5. d3 {[%clk 0:03:03]}  d5 {[%clk 0:02:56]} 6. a3 {[%clk 0:03:01]}  a5 {[%clk 0:02:54]} 7. Nc3 {[%clk 0:03:01]}  Nc6 {[%clk 0:02:52]} 8. Rb1 {[%clk 0:03:02]}  e5 {[%clk 0:02:49]} 9. b4 {[%clk 0:03:01]}  axb4 {[%clk 0:02:46]} 10. axb4 {[%clk 0:03:02]}  d4 {[%clk 0:02:47]} 11. Nb5 {[%clk 0:02:51]}  Re8 {[%clk 0:02:35]} 12. e3 {[%clk 0:02:38]}  dxe3 {[%clk 0:02:25]} 13. Bxe3 {[%clk 0:02:39]}  Nd5 {[%clk 0:02:25]} 14. Bd2 {[%clk 0:02:34]}  Bf5 {[%clk 0:02:16]} 15. Re1 {[%clk 0:02:33]}  Qd7 {[%clk 0:02:14]} 16. Nh4 {[%clk 0:02:10]}  Bg4 {[%clk 0:02:12]} 17. Bf3 {[%clk 0:02:07]}  Bxf3 {[%clk 0:02:12]} 18. Nxf3 {[%clk 0:02:06]}  h6 {[%clk 0:01:50]} 19. Nc3 {[%clk 0:01:52]}  Ndxb4 {[%clk 0:01:48]} 20. Ne4 {[%clk 0:01:51]}  Qe7 {[%clk 0:01:42]} 21. Qc1 {[%clk 0:01:46]}  f5 {[%clk 0:01:36]} 22. Nc3 {[%clk 0:01:24]}  Kh7 {[%clk 0:01:29]} 23. d4 {[%clk 0:00:57]}  e4 {[%clk 0:01:21]} 24. d5 {[%clk 0:00:57]}  Bxc3 {[%clk 0:00:58]} 25. dxc6 {[%clk 0:00:47]}  Bxd2 {[%clk 0:00:56]} 26. Qxd2 {[%clk 0:00:33]}  Nxc6 {[%clk 0:00:54]} 27. Rxb7 {[%clk 0:00:33]}  Rab8 {[%clk 0:00:49]} 28. Rxb8 {[%clk 0:00:24]}  Rxb8 {[%clk 0:00:50]} 29. Qc3 {[%clk 0:00:22]}  Qd6 {[%clk 0:00:39]} 30. Nh4 {[%clk 0:00:20]}  Nd4 {[%clk 0:00:36]} 31. Kg2 {[%clk 0:00:19]}  c5 {[%clk 0:00:21]} 32. Ra1 {[%clk 0:00:19]}  Rb7 {[%clk 0:00:21]} 33. Qc4 {[%clk 0:00:19]}  g5 {[%clk 0:00:19]} 34. Nxf5 {[%clk 0:00:18]}  Nxf5 {[%clk 0:00:18]} 35. Qxe4 {[%clk 0:00:17]}  Rf7 {[%clk 0:00:16]} 36. Ra5 {[%clk 0:00:17]}  Qg6 {[%clk 0:00:15]} 37. f3 {[%clk 0:00:15]}  c4 {[%clk 0:00:13]} 38. Rc5 {[%clk 0:00:15]}  Ng7 {[%clk 0:00:10]} 39. Qxg6+ {[%clk 0:00:15]}  Kxg6 {[%clk 0:00:10]} 40. Rxc4 {[%clk 0:00:16]}  Rd7 {[%clk 0:00:11]} 41. Rc6+ {[%clk 0:00:16]}  Kh7 {[%clk 0:00:11]} 42. h4 {[%clk 0:00:15]}  Rd2+ {[%clk 0:00:12]} 43. Kh3 {[%clk 0:00:15]}  gxh4 {[%clk 0:00:12]} 44. Kxh4 {[%clk 0:00:16]}  Rf2 {[%clk 0:00:12]} 45. f4 {[%clk 0:00:16]}  Rg2 {[%clk 0:00:12]} 46. Kg4 {[%clk 0:00:17]}  h5+ {[%clk 0:00:12]} 47. Kf3 {[%clk 0:00:17]}  Rg1 {[%clk 0:00:12]} 48. c4 {[%clk 0:00:15]}  Nf5 {[%clk 0:00:12]} 49. Rc5 {[%clk 0:00:14]}  Nxg3 {[%clk 0:00:11]} 50. Rg5 {[%clk 0:00:14]}  h4 {[%clk 0:00:11]} 51. Rg4 {[%clk 0:00:13]}  Rh1 {[%clk 0:00:06]} 52. Kg2 {[%clk 0:00:13]}  Kh6 {[%clk 0:00:06]} 53. Rxg3 {[%clk 0:00:11]}  Rc1 {[%clk 0:00:05]} 54. Rh3 {[%clk 0:00:11]}  Kh5 {[%clk 0:00:05]} 55. Re3 {[%clk 0:00:10]}  Kg4 {[%clk 0:00:05]} 56. Re2 {[%clk 0:00:09]}  Rxc4 {[%clk 0:00:05]} 57. Kh2 {[%clk 0:00:10]}  Rxf4 {[%clk 0:00:06]} 58. Rg2+ {[%clk 0:00:11]}  Kh5 {[%clk 0:00:06]} 59. Ra2 {[%clk 0:00:11]}  Kg5 {[%clk 0:00:05]} 60. Rb2 {[%clk 0:00:12]}  Kg4 {[%clk 0:00:05]} 61. Ra2 {[%clk 0:00:12]}  h3 {[%clk 0:00:04]} 62. Rb2 {[%clk 0:00:13]}  Kh4 {[%clk 0:00:05]} 63. Ra2 {[%clk 0:00:14]}  Rf5 {[%clk 0:00:04]} 64. Rb2 {[%clk 0:00:14]}  Rg5 {[%clk 0:00:05]} 65. Ra2 {[%clk 0:00:14]}  Rg4 {[%clk 0:00:06]} 66. Rb2 {[%clk 0:00:15]}  Rg5 {[%clk 0:00:06]} 67. Ra2 {[%clk 0:00:15]}  Rg4 {[%clk 0:00:07]} 68. Rb2 {[%clk 0:00:16]}  Rg5 {[%clk 0:00:08]} 1/2-1/2

[Event "December 19 Early 2023"]
[Site "https://www.chess.com"]
[Date "2023.12.19"]
[Round "2"]
[White "Dinu, Dumitru-Daniel"]
[Black "Leiva, Gianmarco"]
[Result "1/2-1/2"]
[Board "88"]
[TimeControl "180+1"]
[WhiteFideId "1208403"]
[BlackFideId "3804399"]
[WhiteElo "2240"]
[BlackElo "2338"]
[WhiteTeam "ROU"]
[BlackTeam "PER"]
[WhiteClock "0:00:03"]
[BlackClock "0:00:10"]

1. e4 {[%clk 0:03:00]}  c5 {[%clk 0:02:51]} 2. Nf3 {[%clk 0:03:00]}  d6 {[%clk 0:02:51]} 3. Bb5+ {[%clk 0:02:59]}  Nd7 {[%clk 0:02:51]} 4. d4 {[%clk 0:02:58]}  cxd4 {[%clk 0:02:48]} 5. Qxd4 {[%clk 0:02:57]}  a6 {[%clk 0:02:46]} 6. Bxd7+ {[%clk 0:02:57]}  Bxd7 {[%clk 0:02:46]} 7. O-O {[%clk 0:02:55]}  Rc8 {[%clk 0:02:36]} 8. Nc3 {[%clk 0:02:42]}  e5 {[%clk 0:02:31]} 9. Qd3 {[%clk 0:02:41]}  h6 {[%clk 0:02:29]} 10. a4 {[%clk 0:02:22]}  Nf6 {[%clk 0:02:28]} 11. Rd1 {[%clk 0:02:02]}  Be7 {[%clk 0:02:25]} 12. Nd2 {[%clk 0:01:53]}  Qc7 {[%clk 0:02:25]} 13. Nf1 {[%clk 0:01:50]}  Be6 {[%clk 0:02:23]} 14. Ne3 {[%clk 0:01:50]}  Qc5 {[%clk 0:02:21]} 15. Bd2 {[%clk 0:01:29]}  O-O {[%clk 0:01:57]} 16. b4 {[%clk 0:01:23]}  Qd4 {[%clk 0:01:48]} 17. Be1 {[%clk 0:01:03]}  Qxd3 {[%clk 0:01:42]} 18. cxd3 {[%clk 0:00:57]}  Rc7 {[%clk 0:01:16]} 19. Rdc1 {[%clk 0:00:56]}  Rfc8 {[%clk 0:01:14]} 20. Bd2 {[%clk 0:00:56]}  Kf8 {[%clk 0:01:13]} 21. Kf1 {[%clk 0:00:49]}  h5 {[%clk 0:01:12]} 22. Ke1 {[%clk 0:00:47]}  h4 {[%clk 0:01:07]} 23. h3 {[%clk 0:00:48]}  Bd7 {[%clk 0:00:51]} 24. b5 {[%clk 0:00:35]}  Rc5 {[%clk 0:00:45]} 25. bxa6 {[%clk 0:00:29]}  bxa6 {[%clk 0:00:46]} 26. Rab1 {[%clk 0:00:30]}  Bd8 {[%clk 0:00:46]} 27. Nc4 {[%clk 0:00:27]}  Ke7 {[%clk 0:00:28]} 28. Be3 {[%clk 0:00:24]}  Rxc4 {[%clk 0:00:23]} 29. dxc4 {[%clk 0:00:24]}  Rxc4 {[%clk 0:00:24]} 30. Nd5+ {[%clk 0:00:24]}  Nxd5 {[%clk 0:00:24]} 31. Rxc4 {[%clk 0:00:24]}  Nxe3 {[%clk 0:00:23]} 32. fxe3 {[%clk 0:00:23]}  a5 {[%clk 0:00:05]} 33. Rb7 {[%clk 0:00:21]}  Ke6 {[%clk 0:00:05]} 34. Ke2 {[%clk 0:00:17]}  g6 {[%clk 0:00:05]} 35. Kd3 {[%clk 0:00:17]}  f5 {[%clk 0:00:06]} 36. exf5+ {[%clk 0:00:15]}  gxf5 {[%clk 0:00:07]} 37. Kc2 {[%clk 0:00:14]}  Bg5 {[%clk 0:00:03]} 38. Ra7 {[%clk 0:00:12]}  Bxe3 {[%clk 0:00:03]} 39. Rxa5 {[%clk 0:00:13]}  f4 {[%clk 0:00:03]} 40. Kd3 {[%clk 0:00:12]}  d5 {[%clk 0:00:01]} 41. Rb4 {[%clk 0:00:09]}  e4+ {[%clk 0:00:01]} 42. Ke2 {[%clk 0:00:09]}  Ke5 {[%clk 0:00:01]} 43. Rbb5 {[%clk 0:00:09]}  Bxb5+ {[%clk 0:00:01]} 44. Rxb5 {[%clk 0:00:09]}  Kd4 {[%clk 0:00:01]} 45. a5 {[%clk 0:00:09]}  Kc4 {[%clk 0:00:02]} 46. Rb7 {[%clk 0:00:10]}  Bc5 {[%clk 0:00:01]} 47. a6 {[%clk 0:00:10]}  d4 {[%clk 0:00:02]} 48. a7 {[%clk 0:00:11]}  d3+ {[%clk 0:00:02]} 49. Kd1 {[%clk 0:00:10]}  Bxa7 {[%clk 0:00:02]} 50. Rxa7 {[%clk 0:00:11]}  Kd4 {[%clk 0:00:03]} 51. Re7 {[%clk 0:00:11]}  Ke3 {[%clk 0:00:04]} 52. Rf7 {[%clk 0:00:11]}  f3 {[%clk 0:00:04]} 53. gxf3 {[%clk 0:00:11]}  exf3 {[%clk 0:00:04]} 54. Ra7 {[%clk 0:00:06]}  Kf2 {[%clk 0:00:05]} 55. Rf7 {[%clk 0:00:06]}  Kg2 {[%clk 0:00:05]} 56. Ke1 {[%clk 0:00:05]}  d2+ {[%clk 0:00:05]} 57. Kxd2 {[%clk 0:00:05]}  Kxh3 {[%clk 0:00:05]} 58. Rxf3+ {[%clk 0:00:05]}  Kg2 {[%clk 0:00:05]} 59. Rf8 {[%clk 0:00:06]}  h3 {[%clk 0:00:06]} 60. Ke2 {[%clk 0:00:05]}  h2 {[%clk 0:00:07]} 61. Rg8+ {[%clk 0:00:04]}  Kh1 {[%clk 0:00:07]} 62. Rh8 {[%clk 0:00:02]}  Kg2 {[%clk 0:00:08]} 63. Rg8+ {[%clk 0:00:02]}  Kh1 {[%clk 0:00:08]} 64. Rh8 {[%clk 0:00:03]}  Kg2 {[%clk 0:00:09]} 65. Rxh2+ {[%clk 0:00:03]}  Kxh2 {[%clk 0:00:10]} 1/2-1/2